fUSD/lending_fUSD_20250519
["ID","MTS","AMOUNT","RATE_DAILY","PERIOD"]
[361621324,1747645467652,-7.32789423,0.00013698,2]
[361621325,1747645467661,-492.67210577,0.00013698,2]
[361621326,1747645467673,-202.23789423,0.00013698,2]
[361621327,1747645467682,-297.76210577,0.00013698,2]
[361621328,1747645467701,-122.23789423,0.00013698,2]
[361621329,1747645467710,-377.76210577,0.00013698,2]
[361621330,1747645467733,-42.23789423,0.00013698,2]
[361621331,1747645467743,-420.0,0.00013698,2]
[361621332,1747645467753,-37.76210577,0.00013698,2]
[361621333,1747645467771,-500.0,0.00013698,2]
[361621334,1747645467789,-219.38789423,0.00013698,2]
[361621335,1747645467798,-280.61210577,0.00013698,2]
[361621336,1747645467815,-119.38789423,0.00013698,2]
[361621337,1747645467824,-380.61210577,0.00013698,2]
[361621338,1747645467835,-500.0,0.00013698,2]
[361621339,1747645467859,-75.13789423,0.00013698,2]
[361621340,1747645467869,-420.0,0.00013698,2]
[361621341,1747645467878,-4.86210577,0.00013698,2]
[361621342,1747645467897,-415.13789423,0.00013698,2]
[361621343,1747645467906,-84.86210577,0.00013698,2]
[361621344,1747645467918,-335.13789423,0.00013698,2]
[361621345,1747645467928,-164.86210577,0.00013698,2]
[361621346,1747645467940,-237.04711922,0.00013698,2]
[361621347,1747645467980,-18.09077501,0.00013698,2]
[361621348,1747645468222,-1449.34,0.00013698,2]
[361621349,1747645468255,-420.0,0.00013698,2]
[361621350,1747645468288,-343.1152222,0.00013698,2]
[361621351,1747645468315,-420.0,0.00013698,2]
[361621352,1747645468343,-400.0,0.00013698,2]
[361621353,1747645468370,-1961.18,0.00013698,2]
[361621354,1747645468398,-401.53483007,0.00013698,2]
[361621355,1747645468425,-420.0,0.00013698,2]
[361621356,1747645468454,-420.0,0.00013698,2]
[361621357,1747645468481,-203.10984833,0.00013698,2]
[361621358,1747645468509,-420.0,0.00013698,2]
[361621359,1747645468536,-420.0,0.00013698,2]
[361621360,1747645468563,-912.67,0.00013698,2]
[361621361,1747645468590,-1289.36,0.00013698,2]
[361621362,1747645468616,-420.0,0.00013698,2]
[361621363,1747645468643,-420.0,0.00013698,2]
[361621364,1747645468670,-420.0,0.00013698,2]
[361621365,1747645468696,-300.0,0.00013698,2]
[361621366,1747645468722,-420.0,0.00013698,2]
[361621367,1747645468749,-420.0,0.00013698,2]
[361621368,1747645468776,-420.0,0.00013698,2]
[361621369,1747645468803,-380.0,0.00013698,2]
[361621370,1747645468829,-485.98,0.00013698,2]
[361621371,1747645468856,-420.0,0.00013698,2]
[361621372,1747645468883,-802.68,0.00013698,2]
[361621373,1747645468909,-496.86,0.00013698,2]
[361621374,1747645468936,-420.0,0.00013698,2]
[361621375,1747645468962,-420.0,0.00013698,2]
[361621376,1747645468989,-604.83,0.00013698,2]
[361621377,1747645469018,-400.0,0.00013698,2]
[361621378,1747645469045,-400.0,0.00013698,2]
[361621379,1747645469072,-576.61,0.00013698,2]
[361621380,1747645469099,-420.0,0.00013698,2]
[361621381,1747645469126,-420.0,0.00013698,2]
[361621382,1747645469152,-547.78,0.00013698,2]
[361621383,1747645469180,-420.0,0.00013698,2]
[361621384,1747645469207,-420.0,0.00013698,2]
[361621385,1747645469235,-400.0,0.00013698,2]
[361621386,1747645469263,-420.0,0.00013698,2]
[361621387,1747645469295,-420.0,0.00013698,2]
[361621388,1747645469324,-420.0,0.00013698,2]
[361621389,1747645469351,-585.38,0.00013698,2]
[361621390,1747645469379,-1845.35,0.00013698,2]
[361621391,1747645469407,-716.83,0.00013698,2]
[361621392,1747645469435,-420.0,0.00013698,2]
[361621393,1747645469463,-726.56,0.00013698,2]
[361621394,1747645469491,-447.79,0.00013698,2]
[361621395,1747645469520,-420.0,0.00013698,2]
[361621396,1747645469547,-420.0,0.00013698,2]
[361621397,1747645469573,-420.0,0.00013698,2]
[361621398,1747645469599,-420.0,0.00013698,2]
[361621399,1747645469626,-420.0,0.00013698,2]
[361621400,1747645469653,-420.0,0.00013698,2]
[361621401,1747645469680,-420.0,0.00013698,2]
[361621402,1747645469707,-617.98,0.00013698,2]
[361621403,1747645469734,-401.88512933,0.00013698,2]
[361621404,1747645469765,-498.56,0.00013698,2]
[361621405,1747645469793,-420.0,0.00013698,2]
[361621406,1747645469820,-451.51,0.00013698,2]
[361621407,1747645469846,-630.6,0.00013698,2]
[361621408,1747645469874,-420.0,0.00013698,2]
[361621409,1747645469900,-1370.89,0.00013698,2]
[361621410,1747645469928,-1095.67,0.00013698,2]
[361621411,1747645469955,-400.0,0.00013698,2]
[361621412,1747645469983,-426.29,0.00013698,2]
[361621413,1747645470013,-400.0,0.00013698,2]
[361621414,1747645470040,-1007.2,0.00013698,2]
[361621415,1747645470067,-420.0,0.00013698,2]
[361621416,1747645470095,-400.0,0.00013698,2]
[361621417,1747645470126,-400.0,0.00013698,2]
[361621418,1747645470156,-1016.15,0.00013698,2]
[361621419,1747645470185,-420.0,0.00013698,2]
[361621420,1747645470214,-420.0,0.00013698,2]
[361621421,1747645470242,-400.0,0.00013698,2]
[361621422,1747645470280,-1056.92,0.00013698,2]
[361621423,1747645470309,-400.0,0.00013698,2]
[361621424,1747645470339,-2411.56,0.00013698,2]
[361621425,1747645470370,-568.27,0.00013698,2]
[361621426,1747645470398,-420.0,0.00013698,2]
[361621427,1747645470425,-575.26,0.00013698,2]
[361621428,1747645470455,-420.0,0.00013698,2]
[361621429,1747645470483,-400.0,0.00013698,2]
[361621430,1747645470514,-734.64,0.00013698,2]
[361621431,1747645470542,-400.0,0.00013698,2]
[361621432,1747645470568,-1049.1,0.00013698,2]
[361621433,1747645470594,-2151.24,0.00013698,2]
[361621434,1747645470620,-400.0,0.00013698,2]
[361621435,1747645470645,-420.0,0.00013698,2]
[361621436,1747645470673,-3896.03,0.00013698,2]
[361621437,1747645470700,-725.94,0.00013698,2]
[361621438,1747645470726,-446.77,0.00013698,2]
[361621439,1747645470754,-428.53,0.00013698,2]
[361621440,1747645470781,-1674.98,0.00013698,2]
[361621441,1747645471044,-400.0,0.00013698,2]
[361621442,1747645471229,-521.63,0.00013698,2]
[361621443,1747645471259,-420.0,0.00013698,2]
[361621444,1747645471291,-734.87,0.00013698,2]
[361621445,1747645471319,-420.0,0.00013698,2]
[361621446,1747645471346,-420.0,0.00013698,2]
[361621447,1747645471374,-420.0,0.00013698,2]
[361621448,1747645471402,-921.61,0.00013698,2]
[361621449,1747645471428,-420.0,0.00013698,2]
[361621450,1747645471457,-3998.65,0.00013698,2]
[361621451,1747645471484,-420.0,0.00013698,2]
[361621452,1747645471511,-420.0,0.00013698,2]
[361621453,1747645471538,-420.0,0.00013698,2]
[361621454,1747645471564,-400.0,0.00013698,2]
[361621455,1747645471590,-420.0,0.00013698,2]
[361621456,1747645471616,-420.0,0.00013698,2]
[361621457,1747645471644,-1470.8,0.00013698,2]
[361621458,1747645471670,-400.0,0.00013698,2]
[361621459,1747645471696,-420.0,0.00013698,2]
[361621460,1747645471722,-922.85,0.00013698,2]
[361621461,1747645471750,-2732.71,0.00013698,2]
[361621462,1747645471779,-732.35,0.00013698,2]
[361621463,1747645471807,-420.0,0.00013698,2]
[361621464,1747645471835,-420.0,0.00013698,2]
[361621465,1747645471863,-2041.82,0.00013698,2]
[361621466,1747645471892,-400.0,0.00013698,2]
[361621467,1747645471919,-7000.96,0.00013698,2]
[361621468,1747645471946,-420.0,0.00013698,2]
[361621469,1747645471972,-1488.03,0.00013698,2]
[361621470,1747645472001,-420.0,0.00013698,2]
[361621471,1747645472030,-420.0,0.00013698,2]
[361621472,1747645472058,-1261.06,0.00013698,2]
[361621473,1747645472085,-1059.1,0.00013698,2]
[361621474,1747645472112,-721.84,0.00013698,2]
[361621475,1747645472139,-489.21,0.00013698,2]
[361621476,1747645472166,-400.0,0.00013698,2]
[361621477,1747645472194,-1942.02,0.00013698,2]
[361621478,1747645472220,-644.19,0.00013698,2]
[361621479,1747645472250,-400.0,0.00013698,2]
[361621480,1747645472281,-400.0,0.00013698,2]
[361621481,1747645472310,-400.0,0.00013698,2]
[361621482,1747645472340,-420.0,0.00013698,2]
[361621483,1747645472370,-265.89088625,0.00013698,2]
[361621484,1747645472398,-400.0,0.00013698,2]
[361621485,1747645472427,-690.77,0.00013698,2]
[361621486,1747645472454,-400.0,0.00013698,2]
[361621487,1747645472481,-380.0,0.00013698,2]
[361621488,1747645472515,-3768.11,0.00013698,2]
[361621489,1747645472545,-900.05,0.00013698,2]
[361621490,1747645472573,-400.0,0.00013698,2]
[361621491,1747645472601,-798.33,0.00013698,2]
[361621492,1747645472629,-420.0,0.00013698,2]
[361621493,1747645472658,-571.75,0.00013698,2]
[361621494,1747645472685,-548.52,0.00013698,2]
[361621495,1747645472713,-420.0,0.00013698,2]
[361621496,1747645472739,-400.0,0.00013698,2]
[361621497,1747645472767,-420.0,0.00013698,2]
[361621498,1747645472794,-553.97899676,0.00013698,2]
[361621499,1747645472821,-2089.3,0.00013698,2]
[361621500,1747645472847,-290.16388352,0.00013698,2]
[361621501,1747645472874,-420.0,0.00013698,2]
[361621502,1747645472901,-420.0,0.00013698,2]
[361621503,1747645472930,-1016.07,0.00013698,2]
[361621504,1747645472956,-400.0,0.00013698,2]
[361621505,1747645472985,-1137.4,0.00013698,2]
[361621506,1747645473013,-454.87,0.00013698,2]
[361621507,1747645473041,-400.0,0.00013698,2]
[361621508,1747645473070,-420.0,0.00013698,2]
[361621509,1747645473100,-420.0,0.00013698,2]
[361621510,1747645473129,-2409.58,0.00013698,2]
[361621511,1747645473159,-420.0,0.00013698,2]
[361621512,1747645473188,-420.0,0.00013698,2]
[361621513,1747645473217,-420.0,0.00013698,2]
[361621514,1747645473245,-1417.2,0.00013698,2]
[361621515,1747645473279,-420.0,0.00013698,2]
[361621516,1747645473309,-595.51,0.00013698,2]
[361621517,1747645473338,-400.0,0.00013698,2]
[361621518,1747645473370,-420.0,0.00013698,2]
[361621519,1747645473400,-260.79822745,0.00013698,2]
[361621520,1747645473428,-400.0,0.00013698,2]
[361621521,1747645473457,-400.0,0.00013698,2]
[361621522,1747645473486,-340.0,0.00013698,2]
[361621523,1747645473519,-420.0,0.00013698,2]
[361621524,1747645473546,-420.0,0.00013698,2]
[361621525,1747645473575,-400.0,0.00013698,2]
[361621526,1747645473604,-420.0,0.00013698,2]
[361621527,1747645473639,-3491.57,0.00013698,2]
[361621528,1747645473670,-631.77,0.00013698,2]
[361621529,1747645473702,-2187.59,0.00013698,2]
[361621530,1747645473732,-456.68,0.00013698,2]
[361621531,1747645473767,-400.0,0.00013698,2]
[361621532,1747645473798,-400.0,0.00013698,2]
[361621533,1747645473829,-584.82,0.00013698,2]
[361621534,1747645473858,-602.69,0.00013698,2]
[361621535,1747645473887,-420.0,0.00013698,2]
[361621536,1747645473916,-2111.6,0.00013698,2]
[361621537,1747645473946,-420.0,0.00013698,2]
[361621538,1747645473975,-2187.84,0.00013698,2]
[361621539,1747645474007,-598.39,0.00013698,2]
[361621540,1747645474039,-487.3,0.00013698,2]
[361621541,1747645474069,-273.64038307,0.00013698,2]
[361621542,1747645474099,-420.0,0.00013698,2]
[361621543,1747645474130,-10838.81,0.00013698,2]
[361621544,1747645474161,-945.7,0.00013698,2]
[361621545,1747645474191,-420.0,0.00013698,2]
[361621546,1747645474220,-530.43,0.00013698,2]
[361621547,1747645474252,-420.0,0.00013698,2]
[361621548,1747645474287,-651.12,0.00013698,2]
[361621549,1747645474319,-622.38,0.00013698,2]
[361621550,1747645474351,-1976.33,0.00013698,2]
[361621551,1747645474382,-690.29,0.00013698,2]
[361621552,1747645474412,-1676.12,0.00013698,2]
[361621553,1747645474440,-420.0,0.00013698,2]
[361621554,1747645474468,-568.35,0.00013698,2]
[361621555,1747645474498,-420.0,0.00013698,2]
[361621556,1747645474530,-1684.53,0.00013698,2]
[361621557,1747645474560,-420.0,0.00013698,2]
[361621558,1747645474588,-420.0,0.00013698,2]
[361621559,1747645474616,-4584.63,0.00013698,2]
[361621560,1747645474644,-1686.12,0.00013698,2]
[361621561,1747645474672,-400.0,0.00013698,2]
[361621562,1747645474699,-563.84,0.00013698,2]
[361621563,1747645474727,-420.0,0.00013698,2]
[361621564,1747645474756,-448.64373736,0.00013698,2]
[361621565,1747645474784,-612.19,0.00013698,2]
[361621566,1747645474814,-420.0,0.00013698,2]
[361621567,1747645474843,-501.16,0.00013698,2]
[361621568,1747645474869,-400.0,0.00013698,2]
[361621569,1747645475142,-420.0,0.00013698,2]
[361621570,1747645475171,-456.29,0.00013698,2]
[361621571,1747645475199,-571.31,0.00013698,2]
[361621572,1747645475226,-9583.03,0.00013698,2]
[361621573,1747645475255,-594.9,0.00013698,2]
[361621574,1747645475285,-420.0,0.00013698,2]
[361621575,1747645475313,-1381.78,0.00013698,2]
[361621576,1747645475341,-420.0,0.00013698,2]
[361621577,1747645475371,-420.0,0.00013698,2]
[361621578,1747645475398,-400.0,0.00013698,2]
[361621579,1747645475424,-420.0,0.00013698,2]
[361621580,1747645475450,-420.0,0.00013698,2]
[361621581,1747645475477,-420.0,0.00013698,2]
[361621582,1747645475504,-258.09713353,0.00013698,2]
[361621583,1747645475531,-420.0,0.00013698,2]
[361621584,1747645475557,-400.0,0.00013698,2]
[361621585,1747645475583,-981.8,0.00013698,2]
[361621586,1747645475609,-400.0,0.00013698,2]
[361621587,1747645476065,-154.11735021,0.00013698,2]
[361621588,1747645476097,-150.09412702,0.00013698,2]
[361621589,1747645476115,-282.7789479,0.00013698,2]
[361621590,1747645476140,-1528.93957487,0.00013698,2]
[361621591,1747645476149,-1054.89,0.00013698,2]
[361621592,1747645476158,-420.0,0.00013698,2]
[361621593,1747645476168,-772.78,0.00013698,2]
[361621594,1747645476177,-420.0,0.00013698,2]
[361621595,1747645476186,-1122.72,0.00013698,2]
[361621596,1747645476195,-400.0,0.00013698,2]
[361621597,1747645476205,-420.0,0.00013698,2]
[361621598,1747645476214,-400.0,0.00013698,2]
[361621599,1747645476223,-400.0,0.00013698,2]
[361621600,1747645476232,-420.0,0.00013698,2]
[361621601,1747645476241,-3356.34563007,0.00013698,2]
[361621602,1747645476254,-2088.80436993,0.00013698,2]
[361621603,1747645476267,-459.85,0.00013698,2]
[361621604,1747645476276,-414.9812159,0.00013698,2]
[361621605,1747645476285,-420.0,0.00013698,2]
[361621606,1747645476294,-8099.02,0.00013698,2]
[361621607,1747645476304,-833.41,0.00013698,2]
[361621608,1747645476313,-420.0,0.00013698,2]
[361621609,1747645476322,-400.0,0.00013698,2]
[361621610,1747645476331,-420.0,0.00013698,2]
[361621611,1747645476341,-438.26,0.00013698,2]
[361621612,1747645476350,-428.40533404,0.00013698,2]
[361621613,1747645476359,-420.0,0.00013698,2]
[361621614,1747645476368,-2094.89,0.00013698,2]
[361621615,1747645476377,-454.25,0.00013698,2]
[361621616,1747645476386,-2151.91,0.00013698,2]
[361621617,1747645476396,-420.0,0.00013698,2]
[361621618,1747645476405,-1084.1,0.00013698,2]
[361621619,1747645476414,-420.0,0.00013698,2]
[361621620,1747645476423,-250.0,0.00013698,2]
[361621621,1747645476432,-420.0,0.00013698,2]
[361621622,1747645476441,-6768.79738013,0.00013698,2]
[361621623,1747645476453,-571.18261987,0.00013698,2]
[361621624,1747645476462,-845.87,0.00013698,2]
[361621625,1747645476471,-420.0,0.00013698,2]
[361621626,1747645476480,-420.0,0.00013698,2]
[361621627,1747645476490,-400.0,0.00013698,2]
[361621628,1747645476499,-420.0,0.00013698,2]
[361621629,1747645476509,-420.0,0.00013698,2]
[361621630,1747645476518,-420.0,0.00013698,2]
[361621631,1747645476526,-420.0,0.00013698,2]
[361621632,1747645476535,-400.0,0.00013698,2]
[361621633,1747645476544,-262.94738013,0.00013698,2]
[361621634,1747645476594,-157.05261987,0.00013698,2]
[361621635,1747645476605,-249.17788013,0.00013698,2]
[361621636,1747645476632,-150.82211987,0.00013698,2]
[361621637,1747645476642,-849.17788013,0.00013698,2]
[361621638,1747645476653,-192.0,0.00013698,2]
[361621639,1747645476664,-192.0,0.00013698,2]
[361621640,1747645476715,-192.0,0.00013698,2]
[361621641,1747645476782,-1000.0,0.00013698,2]
[361621642,1747645476817,-163.69254391,0.00013698,2]
[361621643,1747645476828,-163.69254391,0.00013698,2]
[361621644,1747645476840,-1692.12703205,0.00013698,2]
[361621645,1747645476849,-1429.54,0.00013698,2]
[361621646,1747645476859,-1114.68,0.00013698,2]
[361621647,1747645476868,-456.81,0.00013698,2]
[361621648,1747645476878,-400.0,0.00013698,2]
[361621649,1747645476888,-1731.98,0.00013698,2]
[361621650,1747645476898,-1518.68,0.00013698,2]
[361621651,1747645476908,-420.0,0.00013698,2]
[361621652,1747645476917,-1246.06,0.00013698,2]
[361621653,1747645476927,-509.37,0.00013698,2]
[361621654,1747645476936,-196.42817287,0.00013698,2]
[361621655,1747645476958,-163.69254391,0.00013698,2]
[361621656,1747645476973,-59.87928322,0.00013698,2]
[361621657,1747645476983,-347.74737658,0.00013698,2]
[361621658,1747645476994,-52.25262342,0.00013698,2]
[361621659,1747645477005,-400.35910746,0.00013698,2]
[361621660,1747645477023,-150.09412696,0.00013698,2]
[361621661,1747645477081,-19.04676558,0.00013698,2]
[361621662,1747645477090,-144.64577833,0.00013698,2]
[361621663,1747645477102,-154.1173502,0.00013698,2]
[361621664,1747645477120,-101.23687147,0.00013698,2]
[361621665,1747645477130,-62.45567244,0.00013698,2]
[361621666,1747645477148,-337.54432756,0.00013698,2]
[361621667,1747645477157,-420.0,0.00013698,2]
[361621668,1747645477167,-858.42,0.00013698,2]
[361621669,1747645477176,-420.0,0.00013698,2]
[361621670,1747645477186,-3426.23,0.00013698,2]
[361621671,1747645477195,-420.0,0.00013698,2]
[361621672,1747645477205,-877.24,0.00013698,2]
[361621673,1747645477214,-420.0,0.00013698,2]
[361621674,1747645477223,-126.91498078,0.00013698,2]
[361621675,1747645477407,-1000.0,0.000131,2]
[361621676,1747645477435,-831.13501922,0.00013698,2]
[361621677,1747645477463,-478.44,0.00013698,2]
[361621678,1747645477489,-400.0,0.00013698,2]
[361621679,1747645477521,-420.0,0.00013698,2]
[361621680,1747645477548,-400.0,0.00013698,2]
[361621681,1747645477575,-420.0,0.00013698,2]
[361621682,1747645477602,-618.81,0.00013698,2]
[361621683,1747645477628,-420.0,0.00013698,2]
[361621684,1747645477655,-546.77,0.00013698,2]
[361621685,1747645477682,-1013.79,0.00013698,2]
[361621686,1747645477709,-432.28,0.00013698,2]
[361621687,1747645477736,-420.0,0.00013698,2]
[361621688,1747645477766,-561.5,0.00013698,2]
[361621689,1747645477792,-400.0,0.00013698,2]
[361621690,1747645477822,-4410.96,0.00013698,2]
[361621691,1747645477848,-813.83,0.00013698,2]
[361621692,1747645477876,-823.89,0.00013698,2]
[361621693,1747645477908,-400.0,0.00013698,2]
[361621694,1747645477941,-500.0,0.00013698,2]
[361621695,1747645477970,-400.0,0.00013698,2]
[361621696,1747645477996,-420.0,0.00013698,2]
[361621697,1747645478023,-400.0,0.00013698,2]
[361621698,1747645478049,-918.94,0.00013698,2]
[361621699,1747645478077,-420.0,0.00013698,2]
[361621700,1747645478103,-955.39,0.00013698,2]
[361621701,1747645478130,-982.57,0.00013698,2]
[361621702,1747645478156,-615.1,0.00013698,2]
[361621703,1747645478182,-400.0,0.00013698,2]
[361621704,1747645478209,-1193.67,0.00013698,2]
[361621705,1747645478470,-169524.65,0.00013698,2]
[361621706,1747645478499,-420.0,0.00013698,2]
[361621707,1747645478528,-1192.25,0.00013698,2]
[361621708,1747645478555,-420.0,0.00013698,2]
[361621709,1747645478583,-420.0,0.00013698,2]
[361621710,1747645478615,-422.01,0.00013698,2]
[361621711,1747645478642,-36.18246156,0.00013698,2]
[361621712,1747645479737,-18.09077501,0.00012108,2]
[361621713,1747645479749,-447.77009499,0.00012108,2]
[361621714,1747645479760,-1001.56990501,0.00013665,2]
[361621715,1747645479869,-420.0,0.00013665,2]
[361621716,1747645479880,-343.1152222,0.00013665,2]
[361621717,1747645479891,-420.0,0.00013665,2]
[361621718,1747645479910,-400.0,0.00013665,2]
[361621719,1747645479921,-1961.18,0.00013665,2]
[361621720,1747645479938,-401.53483007,0.00013665,2]
[361621721,1747645479951,-420.0,0.00013665,2]
[361621722,1747645479962,-420.0,0.00013665,2]
[361621723,1747645479979,-203.10984833,0.00013665,2]
[361621724,1747645479990,-420.0,0.00013665,2]
[361621725,1747645480004,-420.0,0.00013665,2]
[361621726,1747645480017,-912.67,0.00013665,2]
[361621727,1747645480028,-1289.36,0.00013665,2]
[361621728,1747645480039,-420.0,0.00013665,2]
[361621729,1747645480050,-420.0,0.00013665,2]
[361621730,1747645480061,-420.0,0.00013665,2]
[361621731,1747645480085,-300.0,0.00013665,2]
[361621732,1747645480157,-123.13539931,0.00013665,2]
[361621733,1747645480167,-296.86460069,0.00013698,2]
[361621734,1747645480201,-66.95293775,0.00013698,2]
[361621735,1747645480211,-353.04706225,0.00013698,2]
[361621736,1747645480222,-324.44293775,0.00013698,2]
[361621737,1747645480232,-95.55706225,0.00013698,2]
[361621738,1747645480242,-304.44293775,0.00013698,2]
[361621739,1747645480251,-75.55706225,0.00013698,2]
[361621740,1747645480268,-276.14975204,0.00013698,2]
[361621741,1747645480281,-209.83024796,0.00013698,2]
[361621742,1747645480297,-420.0,0.00013698,2]
[361621743,1747645480308,-802.68,0.00013698,2]
[361621744,1747645480325,-29.57975204,0.00013698,2]
[361621745,1747645480335,-420.0,0.00013698,2]
[361621746,1747645480344,-47.28024796,0.00013698,2]
[361621747,1747645480356,-372.71975204,0.00013698,2]
[361621748,1747645480365,-47.28024796,0.00013698,2]
[361621749,1747645480376,-372.71975204,0.00013698,2]
[361621750,1747645480385,-47.28024796,0.00013698,2]
[361621751,1747645480396,-372.71975204,0.00013698,2]
[361621752,1747645480406,-232.11024796,0.00013698,2]
[361621753,1747645480421,-317.59975204,0.00013698,2]
[361621754,1747645480430,-82.40024796,0.00013698,2]
[361621755,1747645480441,-400.0,0.00013698,2]
[361621756,1747645480452,-576.61,0.00013698,2]
[361621757,1747645480482,-12001.62975204,0.00013698,2]
[361621758,1747645480510,-420.0,0.00013698,2]
[361621759,1747645480538,-1218.92,0.00013698,2]
[361621760,1747645480564,-400.0,0.00013698,2]
[361621761,1747645480590,-642.08,0.00013698,2]
[361621762,1747645480616,-180.96659774,0.00013698,2]
[361621763,1747645480642,-1838.69999455,0.00013698,2]
[361621764,1747645480670,-661.61,0.00013698,2]
[361621765,1747645480697,-1090.62,0.00013698,2]
[361621766,1747645480724,-588.37,0.00013698,2]
[361621767,1747645480750,-400.0,0.00013698,2]
[361621768,1747645480778,-420.0,0.00013698,2]
[361621769,1747645480808,-600.42,0.00013698,2]
[361621770,1747645480835,-996.75,0.00013698,2]
[361621771,1747645480861,-400.0,0.00013698,2]
[361621772,1747645480887,-420.0,0.00013698,2]
[361621773,1747645480914,-420.0,0.00013698,2]
[361621774,1747645480942,-420.0,0.00013698,2]
[361621775,1747645480968,-420.0,0.00013698,2]
[361621776,1747645480995,-455.74,0.00013698,2]
[361621777,1747645481025,-7084.07,0.00013698,2]
[361621778,1747645481055,-7165.04,0.00013698,2]
[361621779,1747645481082,-420.0,0.00013698,2]
[361621780,1747645481110,-3549.59,0.00013698,2]
[361621781,1747645481137,-746.57,0.00013698,2]
[361621782,1747645481165,-420.0,0.00013698,2]
[361621783,1747645481192,-400.0,0.00013698,2]
[361621784,1747645481219,-420.0,0.00013698,2]
[361621785,1747645481247,-952.87,0.00013698,2]
[361621786,1747645481279,-294.12802214,0.00013698,2]
[361621787,1747645481309,-420.0,0.00013698,2]
[361621788,1747645481337,-10837.62,0.00013698,2]
[361621789,1747645481366,-409.40726435,0.00013698,2]
[361621790,1747645481393,-2594.58,0.00013698,2]
[361621791,1747645481421,-697.83,0.00013698,2]
[361621792,1747645481448,-420.0,0.00013698,2]
[361621793,1747645481475,-2418.89,0.00013698,2]
[361621794,1747645481501,-202.34790549,0.00013698,2]
[361621795,1747645481528,-459.59,0.00013698,2]
[361621796,1747645481556,-1050.22,0.00013698,2]
[361621797,1747645481583,-420.0,0.00013698,2]
[361621798,1747645481609,-2409.69,0.00013698,2]
[361621799,1747645481636,-3661.73,0.00013698,2]
[361621800,1747645481663,-420.0,0.00013698,2]
[361621801,1747645481689,-420.0,0.00013698,2]
[361621802,1747645481717,-420.0,0.00013698,2]
[361621803,1747645481744,-918.79,0.00013698,2]
[361621804,1747645481773,-17791.57,0.00013698,2]
[361621805,1747645481800,-471.95,0.00013698,2]
[361621806,1747645482035,-400.0,0.00013698,2]
[361621807,1747645482080,-400.0,0.00013698,2]
[361621808,1747645482106,-760.25,0.00013698,2]
[361621809,1747645482135,-1138.46,0.00013698,2]
[361621810,1747645482162,-342.25791582,0.00013698,2]
[361621811,1747645482189,-400.0,0.00013698,2]
[361621812,1747645482215,-420.0,0.00013698,2]
[361621813,1747645482241,-536.49,0.00013698,2]
[361621814,1747645482273,-1782.38,0.00013698,2]
[361621815,1747645482301,-400.0,0.00013698,2]
[361621816,1747645482330,-213.74588707,0.00013698,2]
[361621817,1747645482362,-7885.05,0.00013698,2]
[361621818,1747645482389,-400.0,0.00013698,2]
[361621819,1747645482416,-575.68,0.00013698,2]
[361621820,1747645482445,-532.98,0.00013698,2]
[361621821,1747645482471,-1350.68,0.00013698,2]
[361621822,1747645482496,-400.0,0.00013698,2]
[361621823,1747645482524,-596.22,0.00013698,2]